[Event "23rd European Women Club Cup 2018"]
[Site "Halkidiki"]
[Date "2018.10.15"]
[Round "4"]
[White "Vidic, Teja"]
[Black "Ovod, Evgenija"]
[Result "0-1"]
[ECO "C07"]
[WhiteElo "2116"]
[BlackElo "2363"]
[Annotator "NA"]
[PlyCount "80"]
[EventDate "2018.10.12"]
[EventType "team-tourn"]
[EventCountry "GRE"]
[SourceTitle "playchess.com"]
[Source "ChessBase"]
[SourceQuality "1"]
[WhiteTeam "Maribor"]
[BlackTeam "SSHOR"]
[TimeControl "40/5400+30:1800+30"]

1. e4 {[%emt 0:00:00]} e6 {[%emt 0:00:00]} 2. d4 {[%emt 0:00:00]} d5 {[%emt 0:00:00]} 3. Nd2 {[%emt 0:00:00]} c5 {[%emt 0:00:00]} 4. exd5 {[%emt 0:00:06]} Qxd5 {[%emt 0:00:00]} 5. Ngf3 {[%emt 0:00:08]} cxd4 {[%emt 0:00:04]} 6. Bc4 {[%emt 0:00:20]} Qd7 {[%emt 0:00:07]} 7. O-O {[%emt 0:00:52]} Nc6 {[%emt 0:00:07]} 8. Nb3 {[%emt 0:01:54]} Nf6 {[%emt 0:00:08]} 9. Nbxd4 {[%emt 0:02:07]} Nxd4 {[%emt 0:00:07]} 10. Nxd4 {[%emt 0:03:08]} a6 {[%emt 0:00:06]} 11. Bg5 {[%emt 0:02:41]} b5 {[%emt 0:00:10]} 12. Bb3 {[%emt 0:00:28]} Bb7 {[%emt 0:00:08]} 13. c3 {[%emt 0:08:30]} Bc5 {[%emt 0:09:28]} 14. Nf3 {[%emt 0:01:02]} Qc6 {[%emt 0:02:26]} 15. Qe2 {[%emt 0:02:09]} h6 {[%emt 0:11:33]} 16. Be3 {[%emt 0:02:12]} Bd6 {[%emt 0:00:18]} 17. c4 {[%emt 0:08:29]} b4 {[%emt 0:07:51]} 18. c5 {[%emt 0:00:22]} Bc7 {[%emt 0:00:36]} 19. a3 {[%emt 0:06:17]} bxa3 {[%emt 0:09:49]} 20. Rxa3 {[%emt 0:00:05]} O-O {[%emt 0:00:04]} 21. Rc1 {[%emt 0:08:25]} a5 {[%emt 0:10:12]} 22. Ba4 {[%emt 0:01:59]} Qe4 {[%emt 0:00:13]} 23. Bb5 {[%emt 0:07:59]} Bd5 {[%emt 0:01:17]} 24. Ra4 {[%emt 0:03:17]} Qg6 {[%emt 0:13:48]} 25. Bd4 {[%emt 0:18:36]} Nh5 {[%emt 0:02:47]} 26. g3 {[%emt 0:05:06]} Nf4 {[%emt 0:02:48]} 27. Qe3 {[%emt 0:01:49]} Qg4 {[%emt 0:02:16]} 28. Ne5 {[%emt 0:05:56]} Qh3 {[%emt 0:05:35]} 29. Bf1 {[%emt 0:00:04]} Ng2 {[%emt 0:00:06]} 30. Qe2 {[%emt 0:00:48]} f6 {[%emt 0:06:17]} 31. Nd3 {[%emt 0:04:28]} e5 {[%emt 0:00:52]} 32. Bc3 {[%emt 0:00:18]} Qd7 {[%emt 0:08:41]} 33. Rca1 {[%emt 0:03:45]} Qc6 {[%emt 0:01:48]} 34. Bxa5 {[%emt 0:00:42]} Bxa5 {[%emt 0:03:49]} 35. Rxa5 {[%emt 0:00:06]} Rxa5 {[%emt 0:00:04]} 36. Rxa5 {[%emt 0:00:03]} Rb8 {[%emt 0:00:12]} 37. Qd2 {[%emt 0:02:05]} Bf3 {[%emt 0:01:20]} 38. Nb4 {[%emt 0:01:18]} Qe4 {[%emt 0:00:13]} 39. c6 {[%emt 0:01:12]} Nf4 {[%emt 0:01:47]} 40. gxf4 {[%emt 0:00:00]} Qg6+ {[%emt 0:00:00]} 0-1

[Event "23rd European Women Club Cup 2018"]
[Site "Halkidiki"]
[Date "2018.10.15"]
[Round "4"]
[White "Grapsa, Georgia"]
[Black "Zhukova, Natalia"]
[Result "1/2-1/2"]
[ECO "A57"]
[WhiteElo "2085"]
[BlackElo "2403"]
[Annotator "NA"]
[PlyCount "74"]
[EventDate "2018.10.12"]
[EventType "team-tourn"]
[EventCountry "GRE"]
[SourceTitle "playchess.com"]
[Source "ChessBase"]
[SourceQuality "1"]
[WhiteTeam "Thessaloniki"]
[BlackTeam "Kyiv"]
[TimeControl "40/5400+30:1800+30"]

1. d4 {[%emt 0:00:00]} Nf6 {[%emt 0:00:00]} 2. c4 {[%emt 0:00:00]} c5 {[%emt 0:00:07]} 3. d5 {[%emt 0:00:00]} b5 {[%emt 0:00:10]} 4. Nf3 {[%emt 0:00:05]} g6 {[%emt 0:00:27]} 5. e4 {[%emt 0:04:22]} Bg7 {[%emt 0:16:24]} 6. e5 {[%emt 0:13:22]} Ng4 {[%emt 0:00:47]} 7. Ng5 {[%emt 0:00:11]} Nxe5 {[%emt 0:02:09]} 8. cxb5 {[%emt 0:02:36]} d6 {[%emt 0:03:28]} 9. Be2 {[%emt 0:10:31]} O-O {[%emt 0:02:54]} 10. f4 {[%emt 0:01:01]} Ned7 {[%emt 0:00:14]} 11. O-O {[%emt 0:01:50]} Nf6 {[%emt 0:04:30]} 12. Nc3 {[%emt 0:03:29]} a6 {[%emt 0:01:00]} 13. a4 {[%emt 0:08:33]} axb5 {[%emt 0:00:57]} 14. Bxb5 {[%emt 0:00:06]} Na6 {[%emt 0:03:50]} 15. Ra3 {[%emt 0:05:51]} Nb4 {[%emt 0:01:32]} 16. Nce4 {[%emt 0:07:07]} (16. Bc4 $17) 16... Bf5 $17 {[%emt 0:25:08]} ({Don't play} 16... Nbxd5 17. Bc6 $17) (16... Nfxd5 $19 17. Re1 Bb7) 17. Ng3 {[%emt 0:05:14]} Bc2 {[%emt 0:03:47]} 18. Qe2 {[%emt 0:06:13]} h6 {[%emt 0:00:29]} 19. Nh3 {[%emt 0:06:12]} Nfxd5 {[%emt 0:01:30]} 20. f5 {[%emt 0:00:37]} Kh7 {[%emt 0:03:13]} 21. Raf3 {[%emt 0:06:10]} Qc7 {[%emt 0:13:27]} 22. fxg6+ {[%emt 0:05:19]} fxg6 {[%emt 0:00:54]} 23. Rxf8 {[%emt 0:02:18]} Rxf8 {[%emt 0:00:09]} 24. Rxf8 {[%emt 0:00:04]} Bxf8 {[%emt 0:00:02]} 25. Qe6 {[%emt 0:01:15]} c4 {[%emt 0:05:04]} 26. Ne4 {[%emt 0:00:15]} Bxe4 {[%emt 0:00:24]} 27. Qxe4 {[%emt 0:00:05]} Qc5+ {[%emt 0:03:17]} 28. Kh1 {[%emt 0:02:30]} Nd3 {[%emt 0:01:58]} 29. Bxc4 {[%emt 0:01:53]} N5b4 {[%emt 0:04:36]} 30. Be3 {[%emt 0:01:28]} Qh5 {[%emt 0:00:05]} 31. Bxd3 {[%emt 0:04:10]} Qd1+ {[%emt 0:00:02]} 32. Ng1 {[%emt 0:00:50]} Nxd3 {[%emt 0:00:01]} 33. a5 {[%emt 0:00:40]} d5 {[%emt 0:02:39]} 34. Qf3 {[%emt 0:01:13]} Qe1 {[%emt 0:00:31]} 35. Qxf8 {[%emt 0:00:46]} Qxe3 {[%emt 0:00:02]} 36. Qf7+ {[%emt 0:00:19]} Kh8 {[%emt 0:00:01]} 37. Qf8+ {[%emt 0:00:46]} Kh7 {[%emt 0:00:01]} 1/2-1/2

[Event "23rd European Women Club Cup 2018"]
[Site "Halkidiki"]
[Date "2018.10.16"]
[Round "5"]
[White "Andolfatto, Maria"]
[Black "Mihevc-Mohr, Narcisa"]
[Result "1-0"]
[ECO "E69"]
[WhiteElo "2068"]
[BlackElo "1983"]
[Annotator "NA RC"]
[PlyCount "119"]
[EventDate "2018.10.12"]
[EventType "team-tourn"]
[EventCountry "GRE"]
[SourceTitle "playchess.com"]
[Source "ChessBase"]
[SourceQuality "1"]
[WhiteTeam "Banca Alpi Marittime"]
[BlackTeam "Maribor"]
[TimeControl "40/5400+30:1800+30"]

1. Nf3 {[%emt 0:00:00]} Nf6 {[%emt 0:00:00]} 2. c4 {[%emt 0:00:00]} g6 {[%emt 0:00:18]} 3. g3 {[%emt 0:00:01]} Bg7 {[%emt 0:00:06]} 4. Bg2 {[%emt 0:00:07]} O-O {[%emt 0:00:17]} 5. Nc3 {[%emt 0:00:12]} d6 {[%emt 0:00:41]} 6. d4 {[%emt 0:00:21]} c6 {[%emt 0:04:06]} 7. O-O {[%emt 0:00:28]} Nbd7 {[%emt 0:02:07]} 8. e4 {[%emt 0:00:47]} e5 {[%emt 0:07:38]} 9. h3 {[%emt 0:01:22]} a6 {[%emt 0:02:04]} 10. a4 {[%emt 0:02:12]} exd4 {[%emt 0:19:05]} 11. Nxd4 {[%emt 0:00:38]} a5 {[%emt 0:00:44]} 12. Re1 {[%emt 0:02:21]} Nc5 {[%emt 0:10:37] E69: King's Indian: Fianchetto: 6...Nbd7 7 0-0 e5 8 e4 c6 9 h3} 13. Bf4 {[%emt 0:08:39]} Nh5 $146 {[%emt 0:10:25]} ({Predecessor:} 13... Re8 14. Nb3 Nh5 15. Be3 Bxc3 16. bxc3 Nxe4 17. g4 Ng7 18. Bd4 Nf6 19. Qf3 Rxe1+ 20. Rxe1 {½-½ (57) Zubkov,V (2144)-Maslov,I (2202) Kolomna 2014}) 14. Be3 {[%emt 0:06:41]} Be6 {[%emt 0:09:02]} 15. b3 {[%emt 0:11:16]} Qd7 {[%emt 0:15:24]} 16. Kh2 {[%emt 0:01:49]} Rad8 {[%emt 0:05:48]} 17. f4 {[%emt 0:12:39]} f5 {[%emt 0:01:45]} 18. Nxe6 {[%emt 0:11:48]} Qxe6 {[%emt 0:01:07]} 19. exf5 {[%emt 0:05:18]} Qxf5 {[%emt 0:01:06]} 20. Rc1 {[%emt 0:01:03]} Qd3 {[%emt 0:02:35]} 21. Ne4 {[%emt 0:03:28]} Qxd1 {[%emt 0:00:34]} 22. Rcxd1 {[%emt 0:00:46]} Nxe4 {[%emt 0:01:52]} 23. Bxe4 {[%emt 0:00:07]} Bc3 {[%emt 0:00:56]} 24. Re2 {[%emt 0:03:30]} Rfe8 {[%emt 0:00:35]} 25. Bb6 {[%emt 0:03:37]} Rd7 {[%emt 0:00:29]} 26. Rd3 {[%emt 0:03:10]} Rde7 {[%emt 0:00:34]} 27. Rxc3 {[%emt 0:00:59]} Rxe4 28. Rxe4 {[%emt 0:00:05]} Rxe4 {[%emt 0:00:28]} 29. Bxa5 {[%emt 0:00:31]} Nf6 {[%emt 0:00:54]} 30. Rd3 {[%emt 0:05:03]} d5 {[%emt 0:00:50]} 31. cxd5 {[%emt 0:02:04]} Nxd5 {[%emt 0:00:04]} 32. Kg2 {[%emt 0:00:52]} Kf7 {[%emt 0:00:18]} 33. Kf3 {[%emt 0:00:37]} Re8 {[%emt 0:00:53]} 34. Bd2 {[%emt 0:01:39]} Re7 {[%emt 0:00:37]} 35. Be3 {[%emt 0:03:44]} Ke6 {[%emt 0:00:32]} 36. Bd2 {[%emt 0:02:17]} Kf7 {[%emt 0:00:21]} 37. b4 {[%emt 0:01:29]} Nb6 {[%emt 0:00:52]} 38. a5 {[%emt 0:02:02]} Nc4 {[%emt 0:00:43]} 39. Be3 {[%emt 0:01:51]} Nxe3 {[%emt 0:00:46]} 40. Rxe3 {[%emt 0:00:00]} Rd7 {[%emt 0:00:00]} 41. Ke4 {[%emt 0:10:16]} Rd5 {[%emt 0:06:12]} 42. Rc3 {[%emt 0:02:16]} Rb5 {[%emt 0:01:47]} 43. Rc4 {[%emt 0:00:32]} Ke6 {[%emt 0:02:52]} 44. g4 {[%emt 0:01:35]} Kf6 {[%emt 0:09:46]} 45. Kd3 {[%emt 0:04:24]} c5 {[%emt 0:07:33]} 46. bxc5 {[%emt 0:00:45]} Rxa5 {[%emt 0:00:12]} 47. Kd4 {[%emt 0:03:30]} h5 $2 {[%emt 0:01:20]} (47... Rb5 $16 {is more resistant.} 48. c6 bxc6) 48. Rb4 {[%emt 0:02:19]} hxg4 {[%emt 0:02:26]} 49. hxg4 {[%emt 0:00:11]} Ra7 {[%emt 0:01:30]} 50. Kd5 $18 {[%emt 0:00:57]} Ke7 {[%emt 0:00:36]} 51. Rb6 {[%emt 0:01:08]} Kf7 {[%emt 0:00:49]} 52. Kd6 {[%emt 0:00:59]} g5 {[%emt 0:00:43]} 53. fxg5 {[%emt 0:00:53]} Kg6 {[%emt 0:00:18]} 54. Kc7+ {[%emt 0:00:39]} Kxg5 {[%emt 0:00:08]} 55. Rxb7 {[%emt 0:00:50]} Ra1 {[%emt 0:01:03]} 56. c6 {[%emt 0:00:28]} Rc1 {[%emt 0:00:47]} 57. Kd7 {[%emt 0:00:34]} Rd1+ {[%emt 0:00:14]} 58. Kc8 {[%emt 0:00:29]} Kxg4 {[%emt 0:01:55]} 59. c7 {[%emt 0:01:46]} Kf5 {[%emt 0:00:54]} 60. Kb8 {[%emt 0:00:20]} 1-0

[Event "23rd European Women Club Cup 2018"]
[Site "Halkidiki"]
[Date "2018.10.16"]
[Round "5"]
[White "Kumanska, Olena"]
[Black "Lagogianni, Niki Vasiliki"]
[Result "1-0"]
[ECO "A25"]
[WhiteElo "2054"]
[BlackElo "1152"]
[Annotator "NA RC"]
[PlyCount "65"]
[EventDate "2018.10.12"]
[EventType "team-tourn"]
[EventCountry "GRE"]
[SourceTitle "playchess.com"]
[Source "ChessBase"]
[SourceQuality "1"]
[WhiteTeam "Beer Sheva"]
[BlackTeam "Thessaloniki"]
[TimeControl "40/5400+30:1800+30"]

1. c4 {[%emt 0:00:00]} e5 {[%emt 0:00:50]} 2. Nc3 {[%emt 0:00:00]} Nc6 {[%emt 0:00:11]} 3. g3 {[%emt 0:00:00]} Nf6 {[%emt 0:06:18]} 4. Bg2 {[%emt 0:00:37]} Bc5 {[%emt 0:02:13]} 5. e3 {[%emt 0:00:09]} d6 {[%emt 0:01:50]} 6. Nge2 {[%emt 0:00:10]} O-O {[%emt 0:00:52]} 7. O-O {[%emt 0:00:02]} a6 {[%emt 0:07:55]} 8. h3 {[%emt 0:02:03]} Bb6 {[%emt 0:05:20]} 9. d3 {[%emt 0:00:15]} Be6 {[%emt 0:01:39]} 10. Nd5 {[%emt 0:00:19]} Ba7 {[%emt 0:00:57]} 11. Kh2 {[%emt 0:00:14]} Nb8 {[%emt 0:02:11]} 12. Nxf6+ {[%emt 0:00:52]} Qxf6 {[%emt 0:00:17]} 13. Bxb7 {[%emt 0:00:29]} Nd7 {[%emt 0:00:36]} 14. Bxa8 {[%emt 0:01:43]} Rxa8 {[%emt 0:00:21]} 15. Ng1 {[%emt 0:00:08]} Nc5 {[%emt 0:01:13]} 16. b4 {[%emt 0:00:45]} Nb7 {[%emt 0:01:49]} 17. Qf3 {[%emt 0:00:13]} Qxf3 {[%emt 0:00:34]} 18. Nxf3 {[%emt 0:00:01]} a5 19. a3 {[%emt 0:00:23]} c5 {[%emt 0:02:00]} 20. Bd2 {[%emt 0:00:31]} Bb6 {[%emt 0:00:51]} 21. Rfb1 {[%emt 0:00:16]} axb4 {[%emt 0:01:34]} 22. axb4 {[%emt 0:00:05]} Rb8 {[%emt 0:01:26]} 23. bxc5 {[%emt 0:00:13]} Bxc5 {[%emt 0:00:36]} 24. Rxb7 {[%emt 0:00:16]} Re8 25. d4 {[%emt 0:00:01]} exd4 {[%emt 0:02:37]} 26. exd4 {[%emt 0:00:02]} Bxd4 {[%emt 0:00:41]} 27. Nxd4 {[%emt 0:00:22]} Bxc4 {[%emt 0:00:12]} 28. Re1 {[%emt 0:00:12]} Be6 {[%emt 0:00:07]} 29. Nxe6 {[%emt 0:00:09]} fxe6 {[%emt 0:00:40]} 30. Bb4 d5 31. Re7 {[%emt 0:00:37]} Rxe7 {[%emt 0:01:15]} 32. Bxe7 {[%emt 0:00:01]} Kf7 {[%emt 0:00:10]} 33. Bc5 1-0

[Event "23rd European Women Club Cup 2018"]
[Site "Halkidiki"]
[Date "2018.10.16"]
[Round "5"]
[White "Tsivelekidou, Anthoula Elpida"]
[Black "Buzukashvili, Sofia"]
[Result "0-1"]
[ECO "E12"]
[WhiteElo "1147"]
[BlackElo "1936"]
[Annotator "NA RC"]
[PlyCount "132"]
[EventDate "2018.10.12"]
[EventType "team-tourn"]
[EventCountry "GRE"]
[SourceTitle "playchess.com"]
[Source "ChessBase"]
[SourceQuality "1"]
[WhiteTeam "Thessaloniki"]
[BlackTeam "Beer Sheva"]
[TimeControl "40/5400+30:1800+30"]

1. d4 {[%emt 0:00:00]} Nf6 {[%emt 0:00:00]} 2. c4 {[%emt 0:00:00]} e6 {[%emt 0:00:14]} 3. Nf3 {[%emt 0:00:00]} b6 {[%emt 0:00:21]} 4. Bg5 {[%emt 0:00:00]} Bb7 {[%emt 0:00:26]} 5. e3 {[%emt 0:00:20]} Be7 {[%emt 0:00:41]} 6. Bd3 {[%emt 0:00:31]} d6 {[%emt 0:01:29]} 7. Nc3 {[%emt 0:02:15]} Nbd7 {[%emt 0:00:52]} 8. e4 {[%emt 0:01:39]} e5 {[%emt 0:06:31]} 9. d5 {[%emt 0:05:55]} a5 {[%emt 0:08:44]} 10. O-O {[%emt 0:19:30]} Nc5 {[%emt 0:04:41]} 11. a3 {[%emt 0:04:10]} h6 {[%emt 0:11:43]} 12. Be3 {[%emt 0:01:02]} Nxd3 {[%emt 0:11:57]} 13. Qxd3 {[%emt 0:00:07]} Nd7 {[%emt 0:01:45]} 14. b4 {[%emt 0:00:50]} O-O {[%emt 0:02:19]} 15. Rfc1 {[%emt 0:04:10]} Kh7 {[%emt 0:05:39]} 16. Na4 {[%emt 0:15:11]} axb4 {[%emt 0:12:30]} 17. axb4 {[%emt 0:00:14]} Ba6 {[%emt 0:00:59]} 18. b5 {[%emt 0:04:18]} Bb7 {[%emt 0:01:26]} 19. Nd2 {[%emt 0:05:46]} Bg5 {[%emt 0:02:21]} 20. Nf1 {[%emt 0:01:56]} g6 {[%emt 0:01:37]} 21. Bxg5 {[%emt 0:02:13]} Qxg5 {[%emt 0:00:07]} 22. Qg3 {[%emt 0:00:33]} Qe7 {[%emt 0:02:59]} 23. Ne3 {[%emt 0:02:07]} f5 {[%emt 0:01:35]} 24. exf5 {[%emt 0:03:18]} gxf5 {[%emt 0:00:08]} 25. Qh3 {[%emt 0:00:40]} Qg5 {[%emt 0:02:03]} 26. Qg3 {[%emt 0:03:44]} Qf6 {[%emt 0:01:33]} 27. Qh3 {[%emt 0:00:21]} Rf7 {[%emt 0:01:24]} 28. Nf1 {[%emt 0:01:31]} Qg5 {[%emt 0:01:10]} 29. Qg3 {[%emt 0:00:40]} Qf6 {[%emt 0:00:11]} 30. Qh3 {[%emt 0:00:05]} Nf8 {[%emt 0:05:44]} 31. Nc3 {[%emt 0:02:49]} Rb8 {[%emt 0:00:18]} 32. Ne2 {[%emt 0:00:30]} f4 {[%emt 0:01:13]} 33. Qd3+ {[%emt 0:00:39]} Kh8 {[%emt 0:00:32]} 34. f3 {[%emt 0:00:37]} Rg7 {[%emt 0:01:44]} 35. Qd2 {[%emt 0:00:28]} Bc8 {[%emt 0:00:56]} 36. g3 {[%emt 0:02:25]} Ng6 {[%emt 0:02:20]} 37. Ra3 {[%emt 0:01:04]} Bh3 {[%emt 0:01:02]} 38. Kh1 {[%emt 0:00:54]} Rbg8 {[%emt 0:01:25]} 39. Rca1 {[%emt 0:01:07]} Kh7 {[%emt 0:02:43]} 40. Rc1 {[%emt 0:00:00]} Qg5 {[%emt 0:00:00]} 41. Qc2 {[%emt 0:02:20]} Kh8 {[%emt 0:02:14]} 42. Rca1 {[%emt 0:00:17]} Nh4 {[%emt 0:08:07]} 43. Nd2 {[%emt 0:02:38]} Ng2 {[%emt 0:08:32]} 44. Ra8 {[%emt 0:02:45]} Ne3 {[%emt 0:02:56]} 45. Rxg8+ {[%emt 0:00:37]} Rxg8 {[%emt 0:00:05]} 46. Qc1 {[%emt 0:00:42]} Bg2+ {[%emt 0:03:43]} 47. Kg1 {[%emt 0:00:12]} Qh5 {[%emt 0:01:04]} 48. Ra3 {[%emt 0:12:14]} Qh3 {[%emt 0:01:17]} 49. Qe1 {[%emt 0:05:42]} Bxf3 {[%emt 0:01:15]} 50. Qf2 {[%emt 0:00:20]} Bh5 {[%emt 0:06:14]} 51. Nf1 {[%emt 0:01:24]} Nxf1 {[%emt 0:01:52]} 52. Qxf1 {[%emt 0:00:03]} Qg4 {[%emt 0:00:27]} 53. Nc1 {[%emt 0:01:16]} f3 {[%emt 0:00:59]} 54. Ra2 {[%emt 0:01:38]} Qd4+ {[%emt 0:00:31]} 55. Kh1 {[%emt 0:00:36]} e4 {[%emt 0:00:35]} 56. Nb3 {[%emt 0:01:08]} Qe3 {[%emt 0:01:49]} 57. Nc1 {[%emt 0:00:22]} Kh7 {[%emt 0:00:13]} 58. Qg1 {[%emt 0:02:45]} Qc3 {[%emt 0:00:58]} 59. Qf1 {[%emt 0:00:14]} Rf8 {[%emt 0:00:02]} 60. Rf2 {[%emt 0:01:43]} e3 {[%emt 0:00:30]} 61. Ra2 {[%emt 0:00:38]} f2 {[%emt 0:00:32]} 62. h3 {[%emt 0:02:05]} Bf3+ {[%emt 0:00:04]} 63. Kh2 {[%emt 0:00:06]} Be4 {[%emt 0:00:06]} 64. Ne2 {[%emt 0:00:58]} Qe1 {[%emt 0:00:38]} 65. Ra1 {[%emt 0:00:09]} Qxf1 {[%emt 0:00:08]} 66. Rxf1 Bd3 {[%emt 0:00:07]} 0-1

[Event "23rd European Women Club Cup 2018"]
[Site "Halkidiki"]
[Date "2018.10.17"]
[Round "6"]
[White "Muzychuk, Anna"]
[Black "Ushenina, Anna"]
[Result "1/2-1/2"]
[ECO "B52"]
[WhiteElo "2555"]
[BlackElo "2451"]
[Annotator "ChessBase"]
[PlyCount "69"]
[EventDate "2018.10.12"]
[EventType "team-tourn"]
[EventCountry "GRE"]
[SourceTitle "playchess.com"]
[Source "ChessBase"]
[SourceQuality "1"]
[WhiteTeam "Monte-Carlo"]
[BlackTeam "Ugra"]
[TimeControl "40/5400+30:1800+30"]

1. e4 {[%emt 0:00:00]} c5 {[%emt 0:00:00]} 2. Nf3 {[%emt 0:00:00]} d6 {[%emt 0:00:04]} 3. Bb5+ {[%emt 0:00:00]} Bd7 {[%emt 0:00:13]} 4. Bxd7+ {[%emt 0:00:00]} Qxd7 {[%emt 0:00:04]} 5. c4 {[%emt 0:00:00]} Nf6 {[%emt 0:00:09]} 6. Nc3 {[%emt 0:00:03]} g6 {[%emt 0:00:21]} 7. d4 {[%emt 0:00:06]} cxd4 {[%emt 0:00:04]} 8. Nxd4 {[%emt 0:00:05]} Bg7 {[%emt 0:00:06]} 9. f3 {[%emt 0:00:07]} Qc7 {[%emt 0:00:37]} 10. b3 {[%emt 0:00:12]} Qa5 {[%emt 0:00:38]} 11. Bd2 {[%emt 0:00:21]} O-O {[%emt 0:01:19]} 12. Ncb5 {[%emt 0:05:10]} Qd8 {[%emt 0:17:02]} 13. Be3 {[%emt 0:00:30]} Qa5+ {[%emt 0:11:21]} 14. Qd2 {[%emt 0:06:16]} Qxd2+ {[%emt 0:00:06]} 15. Kxd2 {[%emt 0:00:05]} Rc8 {[%emt 0:05:51]} 16. Rac1 {[%emt 0:04:57]} Nc6 {[%emt 0:02:04]} 17. Ke2 {[%emt 0:02:19]} Nd7 {[%emt 0:02:27]} 18. Rhd1 {[%emt 0:01:16]} a6 {[%emt 0:00:39]} 19. Nxc6 {[%emt 0:00:17]} bxc6 {[%emt 0:04:48]} 20. Nc3 {[%emt 0:00:21]} Bxc3 {[%emt 0:04:42]} 21. Rxc3 {[%emt 0:03:56]} c5 {[%emt 0:00:01]} 22. f4 {[%emt 0:06:00]} f6 {[%emt 0:00:04]} 23. Bc1 {[%emt 0:13:29]} a5 {[%emt 0:09:52]} 24. Re3 {[%emt 0:01:21]} a4 {[%emt 0:05:59]} 25. Bb2 {[%emt 0:00:13]} axb3 {[%emt 0:01:01]} 26. axb3 {[%emt 0:00:02]} Ra2 {[%emt 0:01:58]} 27. Rd2 {[%emt 0:00:06]} Kf7 {[%emt 0:01:21]} 28. e5 {[%emt 0:10:17]} fxe5 {[%emt 0:03:25]} 29. fxe5 {[%emt 0:00:13]} Nxe5 {[%emt 0:00:09]} 30. Bxe5 {[%emt 0:00:07]} Rxd2+ {[%emt 0:00:02]} 31. Kxd2 {[%emt 0:00:07]} dxe5 {[%emt 0:00:02]} 32. Rxe5 {[%emt 0:00:08]} e6 {[%emt 0:00:23]} 33. Kc3 {[%emt 0:02:26]} Kf6 {[%emt 0:02:18]} 34. Re2 {[%emt 0:00:11]} Ra8 {[%emt 0:01:46]} 35. Rf2+ {[%emt 0:03:14]} 1/2-1/2

[Event "23rd European Women Club Cup 2018"]
[Site "Halkidiki"]
[Date "2018.10.17"]
[Round "6"]
[White "Gunina, Valentina"]
[Black "Muzychuk, Mariya"]
[Result "0-1"]
[ECO "D30"]
[WhiteElo "2525"]
[BlackElo "2533"]
[Annotator "ChessBase"]
[PlyCount "110"]
[EventDate "2018.10.12"]
[EventType "team-tourn"]
[EventCountry "GRE"]
[SourceTitle "playchess.com"]
[Source "ChessBase"]
[SourceQuality "1"]
[WhiteTeam "Pentole Agnelli"]
[BlackTeam "Kyiv"]
[TimeControl "40/5400+30:1800+30"]

1. d4 {[%emt 0:00:00]} d5 {[%emt 0:00:00]} 2. c4 {[%emt 0:00:00]} e6 {[%emt 0:00:00]} 3. Nf3 {[%emt 0:00:00]} Nf6 {[%emt 0:00:08]} 4. g3 {[%emt 0:00:13]} Bb4+ {[%emt 0:00:44]} 5. Bd2 {[%emt 0:00:15]} Be7 {[%emt 0:00:04]} 6. Bg2 {[%emt 0:00:04]} O-O {[%emt 0:00:29]} 7. O-O {[%emt 0:00:07]} c6 {[%emt 0:00:38]} 8. Qc2 {[%emt 0:00:11]} Nbd7 {[%emt 0:01:01]} 9. a3 {[%emt 0:01:08]} b6 {[%emt 0:02:28]} 10. cxd5 {[%emt 0:00:19]} cxd5 {[%emt 0:00:35]} 11. Bb4 {[%emt 0:00:05]} a5 {[%emt 0:05:42]} 12. Bxe7 {[%emt 0:00:10]} Qxe7 {[%emt 0:00:03]} 13. Nc3 {[%emt 0:00:56]} Ba6 {[%emt 0:00:29]} 14. Rfe1 {[%emt 0:01:15]} Rfc8 {[%emt 0:02:07]} 15. Nd2 {[%emt 0:01:29]} b5 {[%emt 0:07:14]} 16. Qb3 {[%emt 0:00:21]} Rab8 {[%emt 0:15:40]} 17. e4 {[%emt 0:03:03]} dxe4 {[%emt 0:00:30]} 18. Ndxe4 {[%emt 0:00:39]} b4 {[%emt 0:01:16]} 19. axb4 {[%emt 0:08:32]} Bc4 {[%emt 0:01:05]} 20. Qd1 {[%emt 0:04:04]} axb4 {[%emt 0:00:37]} 21. Nxf6+ {[%emt 0:00:55]} Nxf6 {[%emt 0:00:05]} 22. Ne4 {[%emt 0:00:03]} Rd8 {[%emt 0:03:47]} 23. Ra5 {[%emt 0:00:32]} Rb5 {[%emt 0:08:52]} 24. Rxb5 {[%emt 0:01:01]} Bxb5 {[%emt 0:00:03]} 25. Qd2 {[%emt 0:00:05]} Nxe4 {[%emt 0:02:00]} 26. Bxe4 {[%emt 0:00:03]} g6 {[%emt 0:00:20]} 27. h4 {[%emt 0:05:53]} Qd6 {[%emt 0:05:29]} 28. Qg5 {[%emt 0:00:33]} Bc4 {[%emt 0:00:35]} 29. Rc1 {[%emt 0:00:13]} Bb3 {[%emt 0:06:32]} 30. h5 {[%emt 0:04:36]} Qxd4 {[%emt 0:02:39]} 31. Rc7 {[%emt 0:00:33]} Rf8 {[%emt 0:09:17]} 32. hxg6 {[%emt 0:12:06]} hxg6 {[%emt 0:00:09]} 33. Bxg6 {[%emt 0:00:24]} Qg7 {[%emt 0:01:27]} 34. Qe3 {[%emt 0:00:31]} Bd5 {[%emt 0:07:01]} 35. Be4 {[%emt 0:00:11]} Bxe4 {[%emt 0:03:47]} 36. Qxe4 {[%emt 0:00:04]} Qxb2 {[%emt 0:00:15]} 37. Rc5 {[%emt 0:01:13]} Rd8 {[%emt 0:02:10]} 38. Kg2 {[%emt 0:00:07]} Qd4 {[%emt 0:01:26]} 39. Rg5+ {[%emt 0:07:08]} Kf8 {[%emt 0:00:15]} 40. Qf3 {[%emt 0:00:00]} Rb8 {[%emt 0:00:00]} 41. Rh5 {[%emt 0:02:24]} Ke7 {[%emt 0:08:17]} 42. Qc6 {[%emt 0:01:31]} Qd6 {[%emt 0:02:27]} 43. Qc4 {[%emt 0:03:05]} b3 {[%emt 0:01:11]} 44. Qh4+ {[%emt 0:00:38]} Kd7 {[%emt 0:00:37]} 45. Rh7 {[%emt 0:00:17]} Qd5+ {[%emt 0:08:36]} 46. Kh2 {[%emt 0:00:09]} Qf5 {[%emt 0:05:14]} 47. Qd4+ {[%emt 0:00:23]} Kc6 {[%emt 0:00:20]} 48. Rh4 {[%emt 0:05:25]} b2 {[%emt 0:04:06]} 49. Qa7 {[%emt 0:49:54]} Qb5 {[%emt 0:00:59]} 50. Qxf7 {[%emt 0:03:13]} b1=Q {[%emt 0:02:58]} 51. Qxe6+ {[%emt 0:00:04]} Kb7 {[%emt 0:01:16]} 52. Qe7+ {[%emt 0:00:05]} Ka6 {[%emt 0:00:34]} 53. Rh6+ {[%emt 0:05:17]} Rb6 {[%emt 0:00:33]} 54. Rh8 {[%emt 0:00:15]} Qd5 {[%emt 0:01:16]} 55. Qe2+ {[%emt 0:00:45]} Rb5 {[%emt 0:00:44]} 0-1